Cogmind - Beta 17 @@@ ROGUE MODE // 2026.08.11 @ 16:22:24 Player: Ev Result: Destroyed by as-00982 with Assembled Rifle Performance ------------- Evolutions (0) 0 Regions Visited (0) 0 Robots Destroyed (4) 20 Value Destroyed (120) 120 Prototype IDs (0) 0 Alien Tech Used (0) 0 Bonus (0) 0 TOTAL SCORE: 140 Bonus ------- None Cogmind --------- Core Integrity 0/250 Matter 261/300 Energy 66/125 System Corruption 0% Temperature Cool (0) Movement Rolling (80) Location -11/Scrapyard Parts ------- > --- POWER (1) -------- Light Ion Engine > --- PROPULSION (2) --- Wheel Wheel > --- UTILITY (2) ------ Small Storage Unit Improved Terrain Scanner > --- WEAPON (2) ------- Small Laser Mining Laser > --- INVENTORY (8) ---- Aluminum Leg Improved Terrain Scanner Peak State ------------ > --- POWER ------------ Ion Engine > --- PROPULSION ------- Light Treads Light Treads > --- UTILITY ---------- Improved Terrain Scanner Seismic Detector > --- WEAPON ----------- Assault Rifle Light Assault Rifle > --- INVENTORY -------- Light Ion Engine Small Storage Unit Improved Terrain Scanner Small Laser Mining Laser [Rating: 9] Favorites ----------- Power Ion Engine Engine Ion Engine Propulsion Light Treads Treads Light Treads Leg Aluminum Leg Wheel Wheel Utility Improved Terrain Scanner Device Improved Terrain Scanner Storage Small Storage Unit Weapon Light Assault Rifle Energy Gun Small Laser Ballistic Gun Light Assault Rifle Special Weapon Mining Laser Build | -11 ------- Run | Yrd Slots Evolved . | . Power . | . Propulsion . | . Utility . | . Weapon . | . Parts Attached 16 | 16 Power 3 | 3 Engine 3 | 3 Core . | . Reactor . | . Propulsion 6 | 6 Treads 2 | 2 Leg 2 | 2 Wheel 2 | 2 Hover . | . Flight . | . Utility 3 | 3 Device 2 | 2 Storage 1 | 1 Processor . | . Hackware . | . Protection . | . Artifact . | . Weapon 4 | 4 Energy Gun 1 | 1 Energy Cannon . | . Ballistic Gun 2 | 2 Ballistic Cannon . | . Launcher . | . Special Weapon 1 | 1 Impact Weapon . | . Slashing Weapon . | . Piercing Weapon . | . Special Melee Weapon . | . Unidentified Prototypes . | . Parts Lost 7 | 7 Power 2 | 2 Propulsion 2 | 2 Utility 1 | 1 Weapon 2 | 2 Highest Loss Streak 3 | 3 To Critical Strikes . | . Average Backups 4 | 4 Power . | . Propulsion . | . Utility 1 | 1 Weapon 1 | 1 Tool/Special . | . Unused Backups 1 | 1 Power . | . Propulsion . | . Utility 1 | 1 Weapon . | . Tool/Special . | . Average Slot Usage (%) . | . Peak Build Rating 9 | 9 Average Rating 8 | 8 On Entrance . | . Avg Prop Armor Cover (%) . | . Naked Turns . | . Heaviest Build 13 | 13 Greatest Support 40 | 40 Greatest Overweight (x) . | . Average Overweight (x) . | . Largest Inventory Capacity 8 | 8 Average Capacity 5 | 5 Most Carried 6 | 6 Average Carried 4 | 4 Final Capacity 8 | 8 Final Carried 2 | 2 Class Distribution -------------------- None Dominant Class ---------------- None Resources | -11 ----------- Run | Yrd Matter Collected 334 | 334 Remotely . | . Salvage Created 100 | 100 Parts 9 | 9 Haulers Intercepted . | . Recyclers Shooed . | . Parts Field Recycled . | . Retrieved Matter . | . Parts Self-Destructed . | . Prevented . | . Parts Restored . | . Kills | -11 ------- Run | Yrd Combat Hostiles Destroyed 5 | 5 Guns 5 | 5 Classes Destroyed 3 | 3 Tunneler 2 | 2 Demolisher 2 | 2 Assembled 3 | 3 Best Kill Streak 2 | 2 Combat Bots Only 2 | 2 Max Kills in Single Turn 1 | 1 Gunslinging . | . Exploded . | . Melee . | . Uniques/NPCs Destroyed . | . Combat | -11 -------- Run | Yrd Hostile Shots Fired 59 | 59 Missed 13 | 13 Hits 46 | 46 Melee 12 | 12 Projectile 34 | 34 AOE 11 | 11 Critical Strikes 1 | 1 Damage Taken 1108 | 1108 Core 253 | 253 Absorbed by Shields . | . Core Remaining (%) . | . Volleys Fired 18 | 18 Largest 2 | 2 Hottest 60 | 60 Shots Fired 36 | 36 Gun 36 | 36 Cannon . | . Launcher . | . Special . | . Kinetic 24 | 24 Thermal 12 | 12 Explosive . | . Electromagnetic . | . Robot Hit Streak 13 | 13 Robot Miss Streak 3 | 3 Penetration Max . | . Secondary Targets 2 | 2 Max Gunslinging Chain 1 | 1 Shots Hit Robots 24 | 24 Core Hits 17 | 17 Critical Kills . | . Critical Parts Destroyed . | . Critical Strikes . | . Melee Attacks . | . Impact . | . Slashing . | . Piercing . | . Sneak Attacks . | . Combat Hostiles . | . Follow-up Attacks . | . Damage Inflicted 258 | 258 Guns 258 | 258 Cannons . | . Explosions . | . Melee . | . Ramming . | . Kinetic 171 | 171 Thermal 87 | 87 Explosive . | . Electromagnetic . | . Impact . | . Slashing . | . Piercing . | . Highest Corruption . | . Average Corruption . | . Corruption Purged . | . Corruption Blocked . | . Overload Shots . | . Overflow Damage . | . Projectiles . | . Explosions . | . Melee . | . Knockbacks . | . Impact . | . Kinetic . | . Secondary . | . Self-Inflicted Damage . | . Shots . | . Rammed . | . Targets Rammed . | . Kicked . | . Crushed . | . Highest Temperature 40 | 40 Average Temperature 22 | 22 Received Heat Transfer 80 | 80 Siege Activations . | . Martial Activations . | . Shielding Activations . | . Robots Disrupted . | . Combat Hostiles . | . Robots Corrupted . | . Combat Hostiles . | . Parts Fried . | . Impact Corruptions . | . Robots Melted . | . Combat Hostiles . | . Parts Melted . | . Heat Transferred 200 | 200 Parts Sabotaged . | . Parts Stolen . | . Parts Stripped . | . Power Chain Reactions . | . Alert | -11 ------- Run | Yrd Maximum Alert Level . | . Low Security (%) 100 | 100 Level 1 . | . Level 2 . | . Level 3 . | . Level 4 . | . Level 5 . | . High Security . | . Max Security . | . Peak Influence 40 | 40 Initial . | . Average 2 | 2 Influence Increases 60 | 60 Destroy 0b10 Robot/C 40 | 40 Destroy 0b10 Robot/NC 10 | 10 Destroy Leader 10 | 10 Influence Decreases 60 | 60 Time Decay 39 | 39 Lost Part 21 | 21 Squads Dispatched . | . Investigation . | . Extermination . | . Reinforcement . | . Assault . | . Garrison . | . Intercept . | . Searches Triggered . | . Construction Impeded . | . Haulers Reinforced . | . Active Scanning Responses . | . Cargo Convoy Interrupts . | . Stealth | -11 --------- Run | Yrd Distress Signals . | . Communications Jammed . | . Distress Signals . | . Times Spotted 11 | 11 Peak Tracking Total 6 | 6 Tactical Retreats 1 | 1 Traps | -11 ------- Run | Yrd Traps Triggered . | . Indirectly . | . Trap Hack Attempts . | . Triggered . | . Disarmed . | . Reprogrammed . | . Reused . | . Traps Extracted . | . Installed . | . Triggered . | . Machines | -11 ---------- Run | Yrd Machines Disabled . | . Max in Single Turn . | . Machines Repaired . | . Machines Dismantled . | . Machines Sabotaged . | . Overloaded Fab Kills . | . Hacking | -11 --------- Run | Yrd Machines Accessed . | . Terminals . | . Fabricators . | . Repair Stations . | . Recycling Units . | . Scanalyzers . | . Garrison Access . | . Total Hacks . | . Successful . | . Failed . | . Catastrophic . | . Database Lockouts . | . Manual . | . Terminals . | . Fabricators . | . Repair Stations . | . Recycling Units . | . Scanalyzers . | . Garrison Access . | . Terminal Hacks . | . Fabricator Hacks . | . Repair Station Hacks . | . Recycling Unit Hacks . | . Scanalyzer . | . Garrison Access Hacks . | . Unauthorized Hacks . | . Terminals . | . Fabricators . | . Repair Stations . | . Recycling Units . | . Scanalyzers . | . Garrison Access . | . Data Cores Recovered . | . Used . | . Hacking Detections . | . Full Trace Events . | . Feedback Events . | . Feedback Blocked . | . Robot Schematics Acquired . | . Robots Built . | . Authchips . | . Time . | . Total Robot Build Rating . | . Part Schematics Acquired . | . Parts Built . | . Authchips . | . Time . | . Total Part Build Rating . | . Part Studies Acquired . | . Parts Repaired . | . Time . | . Parts Recycled . | . Recycled Matter . | . Retrieved Matter . | . Retrieved Components . | . Parts Scanalyzed . | . Part Schematics Acquired . | . Parts Damaged . | . Bothacking | -11 ------------ Run | Yrd Used RIF Installer . | . Robots Hacked . | . Non-combat . | . Combat . | . Robot Hacks Applied . | . Relay Couplers Released . | . Fabnet Peak Effective % . | . Robots Rewired . | . Allies Hacked . | . Hacks Repelled . | . Allies | -11 -------- Run | Yrd Total Allies . | . Largest Group . | . Highest-Rated Group . | . Highest-Rated Ally . | . Total Orders . | . Ally Attacks . | . Total Damage . | . Kills . | . Allies Corrupted . | . Allies Melted . | . Intel | -11 ------- Run | Yrd Active Infowar (turns) 1577 | 1577 Terrain 1576 | 1576 Seismic 1367 | 1367 Robot Analysis Total . | . Derelict Logs Recovered . | . Drone Launches . | . Drone Recoveries . | . Exploration | -11 ------------- Run | Yrd Turns Passed 1694 | 1694 Spaces Moved 202 | 202 Core 6 | 6 Treads 171 | 171 Legs 17 | 17 Wheels 8 | 8 Hover . | . Flight . | . Fastest Speed 50 | 50 Average Speed 150 | 150 Slowest Speed 160 | 160 Overloaded Moves . | . Propulsion Burnouts . | . Robots Hopped . | . Potential Cave-ins . | . Cave-ins Triggered . | . Exploration Rate (%) 10 | 10 Regions Visited . Branch Regions . Pre-discovered Areas . | . Known Exits Taken . | . Unknown Exits Taken . | . Scrap Searched . | . Spaces Dug . | . Terrain Destroyed . | . Melee . | . Projectile . | . AOE . | . Terrain Rammed . | . Walls Destroyed . | . Machines Disabled . | . Actions | -11 --------- Run | Yrd Total 1559 | 1559 Wait 1305 | 1305 Move 202 | 202 Hop . | . Pick Up 17 | 17 Fast Attach . | . Attach 15 | 15 Detach . | . Swap 2 | 2 Drop . | . Fire 18 | 18 Melee . | . Ram . | . Kick . | . Crush . | . Escape Stasis . | . Rewire . | . Trap . | . Miscellaneous . | . Route ------- -11/Scrapyard (discovered 1 exit: [*Mat]) History --------- Turn | Location | Event 5 | -11/Scrapyard | Discovered new exit (range 16) 1485 | -11/Scrapyard | Assembled infested the area 1527 | -11/Scrapyard | Lost 3 parts (1p1u1w) 1681 | -11/Scrapyard | Core integrity fell below 50% 1688 | -11/Scrapyard | Core integrity fell below 20% 1695 | -11/Scrapyard | Destroyed by as-00982 with Assembled Rifle Last Messages --------------- 01536_ Acquired Aluminum Leg. 01541_ Acquired Wheel. 01555_ K-01 Serf destroyed. 01562_ K-01 Serf collects debris. 01573_ The unstable cave ceiling collapses. 01573_ K-01 Serf collects debris. 01634_ Lgt. Treads destroyed. 01641_ Destroyed Asb. Hover Unit. 01644_ as-71751 destroyed. 01644_ Switching to secondary target: as-49840. 01648_ Lgt. Treads destroyed. 01651_ Acquired 10 matter. 01659_ as-49840 destroyed. 01662_ Acquired 20 matter. 01666_ Acquired Lgt. Ion Engine. 01680_ Aluminum Leg severed. 01682_ as-16304 destroyed. 01685_ Lgt. Assault Rifle destroyed. 01685_ Lgt. Ion Engine destroyed. 01685_ Acquired 19 matter. Map ----- +----------------------------------------------------+ | ?????????????????????????????????????????????????? | | ?????????????????????????????????????????????????? | | ?????????????????????????????????????????????????? | | ?????????????????????????????????????????????????? | | ?????????????????????????????????????????????????? | | ?????????????????????????????????????????????????? | | ?????????????????????????????????????????????????? | | ?????????????????????????#??#??#?????????????????? | | ???????????????????#????????????#????????????????? | | ???????? ???????????#???#??##??????#?##?????????? | | ???????? ??????#??????#???##?###?#?#??#?????????? | | ???????? ???????????#???#??########?#???????????? | | ??????## #?????????#????#?###?#####??####? ?????? | | ??????# ????????????####?############# ? ????? | | ??????# ??????????#??###?### |#?###### ???? | | ???#??? ??#??????#??#?#### # ##?##?#???# ? ??? | | ??????? #???????#?####?#### #?##?## ? #???? | | ????##?# #??????#######?###### ######## ?? ?? | | ????? # #????#???############ ####?###? ? ???? | | ? ??? # #??????#?#??#?####### ######## ? | | ??? ?? #???##########?#?# ###?#? ?# | | ???????# #???# #?### ####???? #### | | ???????# =#???# ##### ####### ### | | ???????# %##### ##### = | | ???????# t | | ??????## a aa @ ## #### ### | | ??????##### ### a ##### < # ##?#? ?#### | | ??????# ## a #?### # # # | | ?#???## ## #?##### # # # ??#? | | ??????# #####= ########### ## | | ?#????# #???# # ?# ##### ## # # | | ???#??# #?#?# # ? ######## #? # ?? | | ?##???# #???# ? ? ######### ##? #? ? | | ??????########??## =# ? ? ###?###########??##?? | | ??????#???????#??# %# ??? ??#######?#####? ???? | | ????????#????????# # ##?##?########## #??? | | ??????#?#????????# #? ?###############? ???? | | ?#????????#??????# #?# ####### ??## ?#?????? | | ??????????????? ?# #?? ? ##?#?#### ?##?#?????? | | ?????????????? ? #???##?##?####?# ?# ?#??????? | | ??????????????? ?# #??#?#????##?## #???????????? | | ??????????#??????? #???????##?#??##?????????????? | | ?????????????????? ?????????????#???????????????? | | ?????????????????# ?????????????????????????????? | | ?????????????????? ?????????????????????????????? | | ?????????????????????????????????????????????????? | | ?????????????????????????????????????????????????? | | ?????????????????????????????????????????????????? | | ?????????????????????????????????????????????????? | | ?????????????????????????????????????????????????? | +----------------------------------------------------+ Best States ------------- Heat Dissipation 25 Energy Generation 10 Energy Capacity 250 Matter Stores 297 Matter Capacity 300 Sight Range 16 Terrain Scan Range 16 Terrain Scan Density 10 Evasion (%) 50 Recoil Reduction 2 Item Schematics ----------------- None Robot Schematics ------------------ None Fabricated ------------ Nothing Repaired ---------- Nothing Studied --------- None Alien Tech Used ----------------- None Achievements -------------- Curiosity Killed The Cat Challenges ------------ None Game ------ Seed IntegratedGravitonBotcube Manual? 0 Play Time 00:14:46 Cumulative 73.4 hours Start 2026.08.11 @ 16:14:30 End 2026.08.11 @ 16:22:24 Sessions 0 Manual Loads 0 Difficulty Rogue Special Mode None Game No. 133 Rogue 133 Adventurer 0 Explorer 0 Win Type - Total 0 Types 0/0/0/0/0/0/0/0/0/0 Lore% 24 Gallery% 32 Achievement% 26 Wizard Run 0 Options --------- Layout 1 ASCII 0 Keyboard 0 Movement Mouse Keybinds 0 Fullscreen 1 Font 24/Smallcaps Map View 50x35 Zoom Use 0% Tactical HUD 1 Map Filters NONE Filters NONE Steam 1 RUN: 3b1d73c8-29e8-492f-904a-f8d624540974